bitfinex/quotes_SOLUSD_20250413
["timestamp","ask_amount","ask_price","bid_price","bid_amount"]
[1744504821205,13.78169595,132.58,132.54,19.07613357]
[1744504821505,13.78169595,132.58,132.54,26.62053357]
[1744504822889,13.78169595,132.57,132.54,26.62053357]
[1744504825802,13.78169595,132.58,132.54,26.62053357]
[1744504826482,13.78169595,132.59,132.54,40.40222952]
[1744504826684,13.78169595,132.6,132.56,19.07613357]
[1744504827595,13.78169595,132.59,132.56,19.07613357]
[1744504827798,13.78169595,132.59,132.57,7.5431]
[1744504828201,0.03,132.63,132.58,19.07613357]
[1744504828416,0.03,132.63,132.59,13.78169595]
[1744504828915,0.03,132.63,132.6,32.85782952]
[1744504829119,13.81169595,132.63,132.6,19.07613357]
[1744504829319,13.78169595,132.61,132.57,7.5431]
[1744504829521,13.78169595,132.59,132.56,26.477472]
[1744504830220,13.78169595,132.58,132.55,88.68216157]
[1744504830408,13.78169595,132.57,132.55,88.68216157]
[1744504830905,7.5403,132.62,132.55,88.68216157]
[1744504830906,13.78169595,132.58,132.55,88.68216157]
[1744504831408,13.78169595,132.59,132.56,19.07613357]
[1744504831612,13.78169595,132.58,132.55,88.54]
[1744504831814,13.78169595,132.56,132.54,0.14216157]
[1744504832205,13.78169595,132.56,132.54,0.28432314]
[1744504833618,13.78169595,132.57,132.54,7.82912314]
[1744504834328,13.78169595,132.57,132.54,0.28432314]
[1744504834735,13.78169595,132.55,132.53,18.79181043]
[1744504835228,13.78169595,132.56,132.53,18.79181043]
[1744504835429,13.78169595,132.56,132.53,26.33711043]
[1744504837200,13.78169595,132.57,132.53,26.33711043]
[1744504837605,13.78169595,132.58,132.54,0.28432314]
[1744504838837,13.78169595,132.58,132.55,18.79181043]
[1744504839618,13.78169595,132.56,132.54,81.6]
[1744504840127,13.78169595,132.55,132.54,81.6]
[1744504842334,13.78169595,132.56,132.54,81.6]
[1744504842837,13.78169595,132.57,132.54,81.6]
[1744504844111,13.78169595,132.58,132.54,89.1445]
[1744504844541,13.78169595,132.6,132.55,32.85782952]
[1744504844843,13.78169595,132.62,132.57,32.85782952]
[1744504845544,13.78169595,132.61,132.57,19.07613357]
[1744504845720,13.78169595,132.62,132.57,32.85782952]
[1744504845920,13.78169595,132.62,132.58,7.5426]
[1744504846439,0.03,132.63,132.59,19.07613357]
[1744504846615,0.03,132.63,132.62,32.57350638]
[1744504846824,0.03,132.63,132.62,32.85782952]
[1744504847735,0.03,132.63,132.62,114.45782952]
[1744504848034,0.03,132.63,132.62,128.29012952]
[1744504850039,0.03,132.63,132.62,130.17385811]
[1744504861957,0.03,132.63,132.62,102.27553902]
[1744504862250,0.03,132.63,132.62,109.95800059]
[1744504862434,0.03,132.63,132.62,123.88185811]
[1744504869154,0.063,132.69,132.63,20.74253357]
[1744504869458,0.063,132.69,132.67,19.07613357]
[1744504870758,0.063,132.69,132.68,26.61303357]
[1744504871834,0.063,132.69,132.68,121.99472952]
[1744504872039,0.063,132.69,132.68,123.87765773]
[1744504872237,0.063,132.69,132.68,110.09596178]
[1744504874657,0.063,132.69,132.68,102.55906178]
[1744504874832,0.063,132.69,132.68,83.48292821]
[1744504875431,0.063,132.69,132.68,91.01982821]
[1744504875733,0.063,132.69,132.68,89.1369]
[1744504876457,0.063,132.69,132.68,81.6]
[1744504876855,0.063,132.69,132.68,26.61303357]
[1744504879573,0.063,132.69,132.68,37.31252301]
[1744504882761,0.063,132.69,132.68,118.91252301]
[1744504885449,0.03,132.71,132.69,19.07613357]
[1744504885640,0.03,132.71,132.7,27.89264114]
[1744504885967,0.03,132.71,132.7,111.37562301]
[1744504886864,0.03,132.71,132.7,118.91132301]
[1744504887656,0.03,132.71,132.7,110.09481544]
[1744504887958,0.03,132.71,132.7,118.91132301]
[1744504888153,0.03,132.71,132.7,110.09481544]
[1744504889268,0.03,132.71,132.7,1.88298187]
[1744504889466,8.84650757,132.71,132.7,1.88298187]
[1744504890974,0.03,132.71,132.7,1.88298187]
[1744504894070,8.84650757,132.71,132.7,1.88298187]
[1744504898070,16.38170757,132.71,132.7,1.88298187]
[1744504898271,8.81650757,132.64,132.6,7.5409]
[1744504898478,8.81650757,132.62,132.59,14.56396157]
[1744504898670,8.81650757,132.62,132.59,6.88]
[1744504898875,8.81650757,132.62,132.58,7.5426]
[1744504899466,8.81650757,132.65,132.6,8.81650757]
[1744504900581,8.81650757,132.65,132.61,7.5409]
[1744504901979,8.81650757,132.64,132.61,7.5409]
[1744504902185,15.508,132.66,132.59,27.89264114]
[1744504902186,8.81650757,132.63,132.6,7.82572314]
[1744504902385,8.81650757,132.63,132.58,9.10083071]
[1744504902561,8.81650757,132.6,132.57,89.1731]
[1744504902884,35.26603028,132.64,132.57,0.03]
[1744504902885,8.81650757,132.59,132.57,0.03]
[1744504903783,34.81650757,132.61,132.57,0.03]
[1744504904188,26.0,132.61,132.57,8.84650757]
[1744504904486,34.81650757,132.61,132.57,0.03]
[1744504904988,8.81650757,132.6,132.57,0.03]
[1744504905171,8.81650757,132.59,132.57,0.03]
[1744504905490,13.79931933,132.59,132.57,0.03]
[1744504906688,13.79931933,132.6,132.57,0.03]
[1744504906990,39.79931933,132.61,132.57,0.03]
[1744504908491,13.79931933,132.59,132.57,0.03]
[1744504908685,13.79931933,132.58,132.57,0.03]
[1744504910075,7.719,132.6,132.57,0.03]
[1744504910263,13.79931933,132.6,132.57,0.03]
[1744504911579,13.79931933,132.61,132.57,0.03]
[1744504912271,13.79931933,132.61,132.57,19.10613357]
[1744504912569,13.79931933,132.64,132.59,32.8754529]
[1744504913384,13.79931933,132.63,132.59,26.61773357]
[1744504913586,13.79931933,132.62,132.58,7.5423]
[1744504913791,13.79931933,132.63,132.58,21.34161933]
[1744504914604,13.79931933,132.62,132.58,7.5423]
[1744504915288,13.79931933,132.61,132.57,26.64913357]
[1744504915475,13.79931933,132.61,132.57,7.573]
[1744504915677,13.79931933,132.6,132.57,0.03]
[1744504915878,13.79931933,132.59,132.57,0.03]
[1744504917190,7.541,132.61,132.57,0.03]
[1744504917191,13.79931933,132.6,132.57,0.03]
[1744504917487,13.79931933,132.59,132.57,0.03]
[1744504918089,13.79931933,132.58,132.57,0.03]
[1744504919675,21.34191933,132.58,132.57,0.03]
[1744504920887,13.79931933,132.58,132.57,0.03]
[1744504922774,13.79931933,132.59,132.57,0.03]
[1744504925402,13.79931933,132.58,132.57,0.03]
[1744504927580,21.34191933,132.58,132.57,0.03]
[1744504927776,7.8994,132.57,132.54,0.03]
[1744504927975,13.79931933,132.55,132.54,0.03]
[1744504928877,21.34361933,132.55,132.51,0.03]
[1744504929093,13.79931933,132.52,132.51,0.03]
[1744504929485,13.79931933,132.53,132.51,0.03]
[1744504930386,13.79931933,132.52,132.51,0.03]
[1744504932377,21.34531933,132.52,132.51,0.03]
[1744504937300,26.0,132.5,132.49,0.063]
[1744504937507,39.79931933,132.5,132.49,0.063]
[1744504938307,26.417,132.49,132.46,0.063]
[1744504938505,39.79931933,132.47,132.46,0.063]
[1744504939410,47.34811933,132.47,132.46,0.063]
[1744504941806,66.3623809,132.47,132.44,0.063]
[1744504942118,13.79931933,132.45,132.44,0.063]
[1744504943206,21.34931933,132.45,132.44,0.063]
[1744504945410,13.79931933,132.45,132.44,0.063]
[1744504946111,21.34931933,132.45,132.44,0.063]
[1744504946815,13.79931933,132.45,132.44,0.063]
[1744504949102,21.34931933,132.45,132.44,0.063]
[1744504949718,13.79931933,132.45,132.44,0.063]
[1744504951526,21.34931933,132.45,132.44,0.063]
[1744504957441,16.40404892,132.45,132.44,0.063]
[1744504957642,33.5492,132.47,132.44,0.063]
[1744504957835,8.85404892,132.45,132.44,0.063]
[1744504958643,26.0,132.47,132.44,0.063]
[1744504958827,34.85404892,132.47,132.44,0.063]
[1744504959444,39.82660636,132.47,132.44,0.063]
[1744504960947,13.82660636,132.46,132.44,0.063]
[1744504964851,39.82660636,132.47,132.44,0.063]
[1744504965029,13.82660636,132.48,132.44,0.063]
[1744504965349,13.82660636,132.49,132.44,32.96573993]
[1744504965539,13.82660636,132.49,132.44,19.13913357]
[1744504965719,13.82660636,132.48,132.44,19.13913357]
[1744504966439,13.82660636,132.48,132.45,7.55]
[1744504968423,13.82660636,132.49,132.45,7.55]
[1744504970541,6.88,132.52,132.46,19.07613357]
[1744504970724,6.88,132.52,132.47,13.82660636]
[1744504970725,20.70660636,132.52,132.47,13.82660636]
[1744504970921,13.82660636,132.52,132.47,13.82660636]
[1744504971528,0.063,132.53,132.48,14.25309107]
[1744504971734,13.88960636,132.53,132.48,14.25309107]
[1744504972742,13.88960636,132.53,132.49,7.5477]
[1744504974534,0.063,132.53,132.51,13.82660636]
[1744504974845,0.063,132.53,132.52,15.35840636]
[1744504975024,0.063,132.53,132.52,34.43453993]
[1744504975848,0.063,132.53,132.52,41.98053993]
[1744504978354,0.0001,132.53,132.52,41.98053993]
[1744504979229,0.063,132.58,132.53,19.07613357]
[1744504979431,0.063,132.58,132.56,13.82660636]
[1744504980147,0.063,132.58,132.57,7.5431]
[1744504980651,0.063,132.58,132.57,40.44583993]
[1744504981431,0.063,132.58,132.57,41.97763993]
[1744504982056,0.063,132.58,132.56,7.5435]
[1744504982256,0.063,132.58,132.57,32.76057836]
[1744504982552,0.063,132.58,132.57,32.90273993]
[1744504983637,0.063,132.58,132.57,13.82660636]
[1744504983848,0.063,132.58,132.56,7.5435]
[1744504987244,7.1665,132.62,132.56,7.5435]
[1744504987445,13.82660636,132.6,132.56,7.5435]
[1744504988255,13.82660636,132.58,132.55,19.07613357]
[1744504988457,13.82660636,132.59,132.55,26.62023357]
[1744504988660,13.82660636,132.61,132.56,32.76057836]
[1744504989064,13.82660636,132.6,132.56,18.933972]
[1744504989246,13.8228,132.63,132.56,32.76057836]
[1744504989444,13.82660636,132.61,132.57,13.96876793]
[1744504989681,13.82660636,132.63,132.58,32.76057836]
[1744504990039,13.82660636,132.63,132.59,7.542]
[1744504990350,0.063,132.64,132.61,13.82660636]
[1744504990542,0.063,132.64,132.62,13.82660636]
[1744504991040,0.063,132.64,132.61,13.82660636]
[1744504991237,0.063,132.64,132.62,14.25309107]
[1744504992067,0.063,132.64,132.63,26.61583357]
[1744504992440,0.063,132.64,132.63,40.44243993]
[1744504993260,0.0001,132.64,132.63,55.87824629]
[1744504993479,0.0001,132.64,132.63,144.11384629]
[1744504993665,0.0001,132.64,132.63,130.28723993]
[1744504995169,0.0001,132.64,132.63,109.82503357]
[1744504995363,0.0001,132.64,132.63,28.082872]
[1744504995567,0.0001,132.64,132.63,41.90947836]
[1744504995758,0.0001,132.64,132.63,42.05163993]
[1744504997072,0.0001,132.64,132.63,41.90947836]
[1744504997462,0.0001,132.64,132.63,42.05163993]
[1744504999688,0.0001,132.64,132.63,26.61583357]
[1744504999884,0.0001,132.64,132.63,40.44243993]
[1744505002183,0.0001,132.64,132.61,21.36740636]
[1744505002387,13.82660636,132.63,132.59,0.14216157]
[1744505002556,13.82660636,132.63,132.59,0.42648471]
[1744505002755,13.82660636,132.63,132.59,0.14216157]
[1744505003070,13.82670636,132.64,132.6,18.933972]
[1744505003281,13.82660636,132.62,132.57,13.88960636]
[1744505003460,13.82660636,132.62,132.58,18.79181043]
[1744505004483,13.82660636,132.61,132.57,7.74806157]
[1744505006888,15.41480636,132.63,132.59,0.14216157]
[1744505007071,13.82670636,132.64,132.59,13.96876793]
[1744505007394,13.82660636,132.62,132.58,18.933972]
[1744505007878,13.82660636,132.61,132.58,18.933972]
[1744505008489,13.82660636,132.61,132.57,21.57466793]
[1744505010079,13.82660636,132.61,132.57,21.43250636]
[1744505010302,13.82660636,132.59,132.57,0.063]
[1744505010773,13.82660636,132.61,132.57,0.063]
[1744505012194,13.82660636,132.61,132.57,7.6061]
[1744505012884,13.82660636,132.61,132.57,0.063]
[1744505017383,13.82660636,132.63,132.58,13.82660636]
[1744505017893,13.82670636,132.64,132.59,32.90273993]
[1744505018569,13.82670636,132.64,132.59,19.07613357]
[1744505019487,13.82670636,132.64,132.59,26.61773357]
[1744505019909,21.36590636,132.64,132.59,26.61773357]
[1744505020390,13.82660636,132.62,132.58,7.5426]
[1744505020568,13.82660636,132.61,132.58,7.5426]
[1744505021089,13.82660636,132.61,132.57,26.25564886]
[1744505022984,21.36750636,132.61,132.57,0.063]
[1744505023674,13.82660636,132.6,132.57,0.063]
[1744505024589,26.0,132.61,132.57,0.063]
[1744505024891,13.82660636,132.6,132.57,0.063]
[1744505025397,13.82660636,132.61,132.57,0.063]
[1744505026689,47.36750636,132.61,132.57,0.063]
[1744505027488,8.8305618,132.6,132.57,0.063]
[1744505027791,8.8305618,132.58,132.57,0.063]
[1744505027971,8.8305618,132.6,132.57,0.063]
[1744505028171,26.0,132.61,132.57,0.063]
[1744505028491,34.8305618,132.61,132.57,0.063]
[1744505029094,8.8305618,132.6,132.57,0.063]
[1744505030190,8.8305618,132.58,132.57,0.063]
[1744505031893,16.3731618,132.58,132.57,0.063]
[1744505038797,26.0,132.55,132.51,0.063]
[1744505039003,8.8305618,132.52,132.51,0.063]
[1744505039177,8.8305618,132.53,132.51,0.063]
[1744505039377,8.8305618,132.56,132.52,19.07613357]
[1744505039579,8.8305618,132.57,132.52,27.90669537]
[1744505039996,8.8305618,132.56,132.52,19.07613357]
[1744505040308,8.8305618,132.57,132.52,27.90669537]
[1744505040680,8.8305618,132.57,132.53,7.5454]
[1744505042795,8.8305618,132.56,132.53,7.5454]
[1744505042990,8.8305618,132.55,132.52,26.62183357]
[1744505044506,8.8305618,132.56,132.52,26.62183357]
[1744505044685,26.0,132.57,132.53,8.8305618]
[1744505045087,8.8305618,132.59,132.54,27.90669537]
[1744505045302,7.5412,132.61,132.54,27.90669537]
[1744505045606,8.8305618,132.59,132.54,27.90669537]
[1744505045988,8.8305618,132.58,132.54,19.07613357]
[1744505046390,8.8305618,132.58,132.55,7.5443]
[1744505048298,8.8305618,132.59,132.55,7.5443]
[1744505048498,8.8305618,132.6,132.55,16.3748618]
[1744505049107,14.3995,132.64,132.57,8.8305618]
[1744505049295,8.8305618,132.63,132.58,8.8305618]
[1744505049731,0.0001,132.64,132.61,27.90669537]
[1744505050013,0.0001,132.64,132.61,9.25704651]
[1744505050305,0.0001,132.64,132.63,7.5397]
[1744505050705,0.0001,132.64,132.62,7.5401]
[1744505051512,0.0001,132.64,132.63,1.88383839]
[1744505053209,0.0001,132.64,132.63,42.2855063]
[1744505059624,0.0001,132.64,132.63,146.03714064]
[1744505059820,0.0001,132.64,132.63,138.5012063]
[1744505061610,0.0001,132.64,132.63,152.28704064]
[1744505063219,0.0001,132.64,132.63,138.5012063]
[1744505067116,0.0001,132.64,132.63,56.9012063]
[1744505067335,0.0001,132.64,132.63,50.6513063]
[1744505070925,0.0001,132.64,132.63,49.1455063]
[1744505071125,0.0001,132.64,132.63,49.00334473]
[1744505071725,0.0001,132.64,132.63,49.1455063]
[1744505072802,13.78593434,132.64,132.63,1.88383839]
[1744505073017,0.0001,132.64,132.63,1.88383839]
[1744505073329,0.0001,132.64,132.62,7.5403]
[1744505075224,13.78593434,132.64,132.6,18.64964886]
[1744505075429,13.78583434,132.62,132.58,14.4023]
[1744505075729,13.78583434,132.62,132.59,1.88395666]
[1744505076232,0.0001,132.64,132.61,7.5409]
[1744505076433,13.78593434,132.64,132.6,26.61733357]
[1744505076826,0.0001,132.64,132.6,40.40316791]
[1744505077409,13.78583434,132.63,132.6,19.07613357]
[1744505078009,13.78583434,132.63,132.6,26.61753357]
[1744505078210,13.78593434,132.64,132.6,26.61753357]
[1744505081031,13.78583434,132.63,132.6,26.61753357]
[1744505082834,13.78583434,132.63,132.61,1.88407142]
[1744505083015,0.0001,132.64,132.61,23.21060576]
[1744505083216,0.0001,132.64,132.63,13.78583434]
[1744505083716,0.0001,132.64,132.62,32.86196791]
[1744505084237,0.0001,132.64,132.63,7.5397]
[1744505087037,0.0001,132.64,132.63,21.32553434]
[1744505088028,0.0001,132.64,132.63,7.5397]
[1744505088842,0.0001,132.64,132.63,9.42322052]
[1744505091740,0.0001,132.64,132.63,18.24467464]
[1744505092242,0.0001,132.64,132.63,9.42322052]
[1744505096843,0.0001,132.64,132.63,1.88352052]
[1744505096844,8.82155412,132.64,132.63,1.88352052]
[1744505098148,16.36075412,132.64,132.63,1.88352052]
[1744505098945,16.36075412,132.64,132.59,7.542]
[1744505099149,8.82145412,132.62,132.59,7.542]
[1744505099351,8.82145412,132.62,132.58,33.47853357]
[1744505099644,8.82145412,132.62,132.58,33.19421043]
[1744505099840,8.82145412,132.62,132.58,26.33421043]
[1744505101958,16.36195412,132.62,132.57,0.28432314]
[1744505102142,8.82145412,132.59,132.55,26.33611043]
[1744505102447,8.82145412,132.56,132.53,7.5454]
[1744505103145,8.82145412,132.56,132.54,18.79181043]
[1744505103360,6.4464,132.59,132.54,32.59211604]
[1744505103561,15.34950561,132.6,132.55,13.80030561]
[1744505104236,13.80030561,132.59,132.55,7.82862314]
[1744505104543,13.80030561,132.58,132.55,7.82862314]
[1744505105242,13.80030561,132.59,132.55,7.82862314]
[1744505106348,20.11910561,132.62,132.57,21.34340561]
[1744505106738,13.80030561,132.62,132.58,19.07613357]
[1744505107046,13.80030561,132.62,132.58,32.87643918]
[1744505107644,15.42680561,132.63,132.58,32.87643918]
[1744505108553,15.42680561,132.63,132.58,40.41843918]
[1744505109264,0.0001,132.64,132.62,19.07613357]
[1744505109472,0.0001,132.64,132.63,13.80030561]
[1744505109666,0.0001,132.64,132.63,32.87643918]
[1744505110345,0.0001,132.64,132.63,40.41613918]
[1744505116253,0.0001,132.64,132.63,26.61583357]
[1744505119157,0.063,132.66,132.65,45.07613357]
[1744505119357,0.063,132.66,132.65,65.73643918]
[1744505120765,0.063,132.66,132.65,33.47473357]
[1744505121056,13.86330561,132.66,132.65,7.5386]
[1744505121258,0.063,132.66,132.65,7.5386]
[1744505122266,0.063,132.66,132.64,26.18884886]
[1744505122457,0.063,132.66,132.65,19.07613357]
[1744505124143,0.0001,132.66,132.65,32.87643918]
[1744505124446,0.0001,132.67,132.66,19.07613357]
[1744505124645,0.0001,132.67,132.66,39.73643918]
[1744505125482,0.063,132.72,132.71,0.28432314]
[1744505125764,0.063,132.73,132.72,32.87643918]
[1744505126349,0.063,132.73,132.72,40.41103918]
[1744505130847,0.0001,132.73,132.72,40.41103918]
[1744505131046,0.0001,132.73,132.72,42.06993918]
[1744505131660,0.0001,132.73,132.72,26.32641043]
[1744505132071,0.0001,132.73,132.72,26.61073357]
[1744505132255,0.0001,132.73,132.72,26.32641043]
[1744505132646,0.0001,132.73,132.72,40.41103918]
[1744505134178,0.0001,132.75,132.72,79.44654479]
[1744505134353,0.03,132.77,132.76,18.79181043]
[1744505134554,0.03,132.77,132.76,39.71643918]
[1744505134963,0.03,132.78,132.77,19.07613357]
[1744505135166,0.03,132.78,132.77,32.87643918]
[1744505136149,0.03,132.78,132.77,40.40823918]
[1744505137066,0.03,132.87,132.86,0.42648471]
[1744505137260,0.03,132.87,132.86,32.87643918]
[1744505138359,0.03,132.87,132.86,40.40313918]
[1744505142775,13.80030561,132.93,132.88,7.5255]
[1744505143077,13.80030561,132.93,132.89,19.07613357]
[1744505143964,13.83030561,132.93,132.89,19.07613357]
[1744505144178,0.03,132.93,132.89,40.40113918]
[1744505145188,13.83030561,132.93,132.89,26.60083357]
[1744505146393,13.83030561,132.93,132.88,13.80030561]
[1744505146394,13.80030561,132.91,132.88,7.5253]
[1744505146565,13.80030561,132.92,132.88,7.5253]
[1744505146767,13.83030561,132.93,132.88,21.32560561]
[1744505147486,0.03,132.93,132.89,32.87643918]
[1744505148397,0.03,132.93,132.89,19.07613357]
[1744505148578,0.03,132.93,132.89,32.87643918]
[1744505149292,0.03,132.93,132.92,19.07613357]
[1744505149471,0.03,132.93,132.92,32.87643918]
[1744505150364,0.03,132.93,132.92,40.39973918]
[1744505152781,0.03,132.93,132.92,26.59943357]
[1744505153504,0.03,132.93,132.92,40.39973918]
[1744505153708,0.03,132.93,132.89,6.84]
[1744505153885,0.03,132.93,132.9,0.14216157]
[1744505154199,0.03,132.93,132.91,18.64964886]
[1744505155002,0.03,132.93,132.91,0.14216157]
[1744505155206,13.83030561,132.93,132.91,0.14216157]
[1744505155701,13.80030561,132.92,132.88,18.79181043]
[1744505155902,13.80030561,132.91,132.88,0.14216157]
[1744505156203,13.80030561,132.9,132.87,0.14216157]
[1744505156597,13.80030561,132.9,132.86,26.31811043]
[1744505157082,0.03,132.93,132.9,18.79181043]
[1744505157697,0.03,132.93,132.9,13.94246718]
[1744505158010,0.03,132.93,132.9,19.07613357]
[1744505158388,0.03,132.93,132.9,26.60053357]
[1744505158577,0.03,132.93,132.9,19.07613357]
[1744505158905,13.83030561,132.93,132.9,19.07613357]
[1744505160404,13.80030561,132.92,132.88,7.5254]
[1744505160607,13.80030561,132.92,132.85,3.71240127]
[1744505160608,13.80030561,132.89,132.85,26.31901043]
[1744505160908,13.80030561,132.89,132.85,0.14216157]
[1744505161095,13.80030561,132.91,132.86,32.73427761]
[1744505161280,13.80030561,132.91,132.86,32.59211604]
[1744505161478,0.03,132.93,132.88,0.28432314]
[1744505161681,13.80030561,132.92,132.88,0.28432314]
[1744505161907,13.80030561,132.91,132.88,0.28432314]
[1744505162089,13.80030561,132.89,132.85,18.64964886]
[1744505162310,13.80030561,132.88,132.84,7.66996157]
[1744505162499,13.80030561,132.87,132.83,7.5912]
[1744505162705,13.80030561,132.85,132.83,0.063]
[1744505163203,13.80030561,132.87,132.83,7.5911]
[1744505163412,13.80030561,132.88,132.84,19.07613357]
[1744505163984,13.80030561,132.85,132.83,0.063]
[1744505164823,13.80030561,132.86,132.83,0.063]
[1744505165584,13.80030561,132.84,132.83,0.063]
[1744505167624,7.5268,132.86,132.83,0.063]
[1744505167937,13.80030561,132.86,132.83,0.063]
[1744505168129,13.80030561,132.87,132.83,0.063]
[1744505168297,15.34310561,132.89,132.84,32.87643918]
[1744505168617,1.5428,132.89,132.85,7.5272]
[1744505168821,13.80030561,132.89,132.85,7.5272]
[1744505169127,13.80030561,132.86,132.83,0.063]
[1744505169847,13.80030561,132.88,132.83,21.39150561]
[1744505170111,13.80030561,132.89,132.84,19.07613357]
[1744505170528,6.2904,132.91,132.87,7.5261]
[1744505170818,13.83030561,132.93,132.88,32.87643918]
[1744505171227,13.80030561,132.92,132.88,19.07613357]
[1744505171423,13.83030561,132.93,132.88,32.87643918]
[1744505171604,0.03,132.93,132.89,13.80030561]
[1744505172000,13.83030561,132.93,132.88,32.87643918]
[1744505172308,0.03,132.93,132.9,19.07613357]
[1744505172613,0.03,132.93,132.91,7.5238]
[1744505174037,0.03,132.93,132.9,0.42648471]
[1744505174038,0.03,132.93,132.9,26.60033357]
[1744505175103,13.83030561,132.93,132.89,7.525]
[1744505175403,0.03,132.93,132.89,21.32530561]
[1744505175832,0.03,132.93,132.92,18.79181043]
[1744505176031,0.03,132.93,132.92,19.07613357]
[1744505176204,0.03,132.93,132.92,0.42648471]
[1744505176624,0.03,132.93,132.9,13.80030561]
[1744505176831,0.03,132.93,132.92,7.5233]
[1744505177424,0.03,132.93,132.92,40.39973918]
[1744505177807,6.87,133.01,132.96,26.14216157]
[1744505177808,0.03,133.01,132.96,26.14216157]
[1744505178021,0.03,133.01,132.99,18.79181043]
[1744505178351,13.83030561,133.01,132.95,26.0]
[1744505178505,13.83030561,133.01,132.96,32.87643918]
[1744505178903,13.80030561,133.0,132.96,19.07613357]
[1744505179108,13.83030561,133.01,132.96,40.39723918]
[1744505179315,0.03,133.01,132.98,32.87643918]
[1744505179921,13.83030561,133.01,132.97,19.07613357]
[1744505180433,0.03,133.01,132.97,19.07613357]
[1744505180729,0.03,132.99,132.97,19.07613357]
[1744505180922,0.03,132.99,132.98,26.59603357]
[1744505181309,0.03,132.99,132.98,19.07613357]
[1744505181627,13.83030561,132.99,132.95,0.14216157]
[1744505181816,13.80030561,132.98,132.94,18.79181043]
[1744505182126,13.83030561,132.99,132.94,32.59211604]
[1744505182722,13.80030561,132.98,132.94,18.79181043]
[1744505182930,13.80030561,132.97,132.94,18.79181043]
[1744505183317,13.80030561,132.98,132.94,18.79181043]
[1744505183519,21.32020561,132.98,132.93,14.08462875]
[1744505183718,13.80030561,132.95,132.92,6.84]
[1744505189329,7.5208,132.97,132.92,6.84]
[1744505189534,13.80030561,132.95,132.92,6.84]
[1744505190737,13.80030561,132.95,132.92,14.3631]
[1744505190939,13.80030561,132.96,132.92,14.3631]
[1744505192956,7.5205,132.97,132.92,14.3631]
[1744505193241,13.80030561,132.96,132.92,14.3631]
[1744505194037,13.80030561,132.96,132.92,28.16340561]
[1744505194229,13.80030561,132.96,132.92,14.3631]
[1744505196019,13.80030561,132.96,132.92,7.5231]
[1744505196944,13.80030561,132.97,132.92,21.32340561]
[1744505198544,13.80030561,132.96,132.92,7.5231]
[1744505198733,13.80030561,132.94,132.91,26.59983357]
[1744505199046,13.80030561,132.95,132.91,26.59983357]
[1744505199236,7.5494,132.99,132.92,13.80030561]
[1744505199434,13.80030561,132.97,132.92,13.80030561]
[1744505199638,7.5494,132.99,132.92,13.80030561]
[1744505199639,13.80030561,132.96,132.92,0.28432314]
[1744505199952,13.80030561,132.95,132.92,0.28432314]
[1744505200144,13.80030561,132.96,132.92,0.28432314]
[1744505200330,13.80030561,132.97,132.92,14.08462875]
[1744505200850,13.80030561,132.97,132.92,21.60732875]
[1744505201154,13.80030561,132.96,132.92,7.80702314]
[1744505201350,13.80030561,132.96,132.92,7.5227]
[1744505201528,7.5205,132.97,132.92,7.5227]
[1744505201529,13.80030561,132.95,132.92,7.5227]
[1744505202650,13.80030561,132.96,132.92,7.5227]
[1744505205860,13.80030561,132.93,132.89,6.84]
[1744505206038,1.5103,132.96,132.9,32.59211604]
[1744505206242,13.80030561,132.96,132.91,13.80030561]
[1744505206956,13.80030561,132.96,132.91,14.08462875]
[1744505207345,13.80030561,132.96,132.91,21.60792875]
[1744505208456,13.80030561,132.97,132.92,32.59211604]
[1744505208658,13.80030561,132.98,132.93,13.80030561]
[1744505208858,13.80030561,132.98,132.92,32.59211604]
[1744505209354,13.80030561,132.97,132.93,7.5227]
[1744505210358,13.80030561,132.96,132.93,7.5227]
[1744505210539,13.80030561,132.94,132.9,18.64964886]
[1744505210938,13.80030561,132.94,132.89,7.525]
[1744505211137,13.80030561,132.93,132.89,7.525]
[1744505211346,13.80030561,132.93,132.88,27.93211043]
[1744505211829,13.80030561,132.92,132.88,27.93211043]
[1744505212439,13.80030561,132.94,132.88,41.73241604]
[1744505212864,13.80030561,132.94,132.89,13.80030561]
[1744505213463,13.80030561,132.93,132.88,41.73241604]